fUSD/lending_fUSD_20251220
["ID","MTS","AMOUNT","RATE_DAILY","PERIOD"]
[399245033,1766201440099,-500.0,0.00013699,2]
[399245034,1766201440109,-500.0,0.00013699,2]
[399245035,1766201440118,-500.0,0.00013699,2]
[399245036,1766201440127,-500.0,0.00013699,2]
[399245037,1766201440137,-500.0,0.00013699,2]
[399245038,1766201440145,-500.0,0.00013699,2]
[399245039,1766201440155,-500.0,0.00013699,2]
[399245040,1766201440163,-500.0,0.00013699,2]
[399245041,1766201440172,-499.72722483,0.00013699,2]
[399245042,1766201440181,-500.0,0.00013699,2]
[399245043,1766201440190,-500.0,0.00013699,2]
[399245044,1766201440199,-500.0,0.00013699,2]
[399245045,1766201440208,-500.0,0.00013699,2]
[399245046,1766201440216,-500.0,0.00013699,2]
[399245047,1766201440226,-357.49060572,0.00013699,2]
[399245048,1766201440235,-500.0,0.00013699,2]
[399245049,1766201440244,-500.0,0.00013699,2]
[399245050,1766201440254,-500.0,0.00013699,2]
[399245051,1766201440263,-500.0,0.00013699,2]
[399245052,1766201440272,-500.0,0.00013699,2]
[399245053,1766201440281,-500.0,0.00013699,2]
[399245054,1766201440290,-500.0,0.00013699,2]
[399245055,1766201440299,-500.0,0.00013699,2]
[399245056,1766201440309,-163.10613259,0.00013773,2]
[399245057,1766201440318,-174.74495914,0.00013773,2]
[399245058,1766201440327,-176.6683039,0.00013773,2]
[399245059,1766201440336,-500.0,0.00013773,2]
[399245060,1766201440345,-500.0,0.00013773,2]
[399245061,1766201440354,-500.0,0.00013773,2]
[399245062,1766201440364,-500.50034776,0.00013773,2]
[399245063,1766201440374,-500.63598857,0.00013773,2]
[399245064,1766201440384,-500.0,0.00013773,2]
[399245065,1766201440395,-165.53185787,0.00013773,2]
[399245066,1766201440405,-500.0,0.00013773,2]
[399245067,1766201440415,-500.0,0.00013773,2]
[399245068,1766201440426,-172.76817182,0.00013773,2]
[399245069,1766201440435,-500.0,0.00013773,2]
[399245070,1766201440444,-500.0,0.00013773,2]
[399245071,1766201440452,-500.0,0.00013773,2]
[399245072,1766201440461,-500.0,0.00013773,2]
[399245073,1766201440470,-500.0,0.00013773,2]
[399245074,1766201440479,-500.0,0.00013773,2]
[399245075,1766201440488,-500.0,0.00013773,2]
[399245076,1766201440497,-165.7973653,0.00013773,2]
[399245077,1766201440506,-500.0,0.00013773,2]
[399245078,1766201440515,-500.0,0.00013773,2]
[399245079,1766201440524,-500.0,0.00013773,2]
[399245080,1766201440533,-536.13646338,0.00013773,2]
[399245081,1766201440543,-500.0,0.00013773,2]
[399245082,1766201440551,-179.50290541,0.00013773,2]
[399245083,1766201440561,-160.23016142,0.00013773,2]
[399245084,1766201440570,-500.0,0.00013773,2]
[399245085,1766201440582,-500.0,0.00013773,2]
[399245086,1766201440591,-500.0,0.00013773,2]
[399245087,1766201440600,-500.0,0.00013773,2]
[399245088,1766201440609,-500.0,0.00013773,2]
[399245089,1766201440619,-500.0,0.00013773,2]
[399245090,1766201440628,-500.0,0.00013773,2]
[399245091,1766201440637,-315.42381846,0.00013773,2]
[399245092,1766201440648,-216.27337885,0.00013773,2]
[399245093,1766201440658,-500.0,0.00013773,2]
[399245094,1766201440667,-165.31243658,0.00013773,2]
[399245095,1766201440676,-201.65516925,0.00013773,2]
[399245096,1766201440685,-168.59999571,0.00013773,2]
[399245097,1766201440694,-200.0,0.00013793,2]
[399245098,1766201440704,-500.0,0.00013793,2]
[399245099,1766201440713,-200.0,0.00013793,2]
[399245100,1766201440722,-166.66,0.00013836,2]
[399245101,1766201440732,-2218.72,0.00013888,2]
[399245102,1766201440741,-500.0,0.00013973,2]
[399245103,1766201440750,-166.66,0.00013973,2]
[399245105,1766201440760,-32591.20521854,0.00014016,2]
[399245107,1766201440770,-42389.71247181,0.00014016,2]
[399245108,1766201440780,-151.0,0.00014052,2]
[399245109,1766201440790,-151.0,0.00014087,2]
[399245110,1766201440800,-166.66,0.0001411,2]
[399245111,1766201440809,-510.18,0.00014113,2]
[399245112,1766201440818,-151.0,0.00014119,2]
[399245113,1766201440827,-369.35,0.00014123,2]
[399245114,1766201440836,-2218.72,0.00014162,2]
[399245115,1766201440845,-1600.0,0.00014232,2]
[399245116,1766201440854,-166.66,0.00014247,2]
[399245117,1766201440863,-572.75082077,0.00014321,2]
[399245118,1766201440873,-1000.0,0.00014321,2]
[399245119,1766201440882,-1001.90897722,0.00014321,2]
[399245120,1766201440891,-500.48342927,0.00014321,2]
[399245121,1766201440901,-1000.0,0.00014321,2]
[399245122,1766201440913,-535.09556247,0.00014321,2]
[399245123,1766201440925,-1000.78461254,0.00014321,2]
[399245124,1766201440934,-208.16009032,0.00014321,2]
[399245125,1766201440944,-1135.18911943,0.00014321,2]
[399245126,1766201440955,-1000.0,0.00014321,2]
[399245127,1766201440965,-1002.93994495,0.00014321,2]
[399245128,1766201440974,-1000.0,0.00014321,2]
[399245129,1766201440984,-1000.0,0.00014321,2]
[399245130,1766201440993,-1000.0,0.00014321,2]
[399245131,1766201441002,-1000.0,0.00014321,2]
[399245132,1766201441012,-1000.0,0.00014321,2]
[399245133,1766201441022,-483.93215772,0.00014321,2]
[399245134,1766201441032,-1000.0,0.00014321,2]
[399245135,1766201441041,-1000.0,0.00014321,2]
[399245136,1766201441051,-1000.0,0.00014321,2]
[399245137,1766201441061,-1000.0,0.00014321,2]
[399245138,1766201441070,-627.27365114,0.00014321,2]
[399245139,1766201441079,-1000.0,0.00014321,2]
[399245140,1766201441088,-500.31513524,0.00014321,2]
[399245141,1766201441098,-1000.0,0.00014321,2]
[399245142,1766201441108,-200.0,0.00014341,2]
[399245143,1766201441117,-500.0,0.00014341,2]
[399245144,1766201441127,-200.0,0.00014341,2]
[399245145,1766201441136,-166.66,0.00014384,2]
[399245146,1766201441145,-2218.72,0.00014436,2]
[399245147,1766201441155,-218.82,0.00014553,2]
[399245148,1766201441166,-217.55,0.0001456,2]
[399245149,1766201441176,-1000.0,0.00014565,2]
[399245150,1766201441186,-500.0,0.00014685,2]
[399245151,1766201441197,-2218.72,0.0001471,2]
[399245152,1766201441207,-1000.0,0.00014716,2]
[399245153,1766201441216,-1000.0,0.00014716,2]
[399245154,1766201441225,-1000.0,0.00014716,2]
[399245155,1766201441235,-1000.0,0.00014716,2]
[399245156,1766201441244,-1000.0,0.00014716,2]
[399245157,1766201441256,-1000.0,0.00014716,2]
[399245158,1766201441265,-1000.0,0.00014716,2]
[399245159,1766201441276,-1000.0,0.00014716,2]
[399245160,1766201441286,-794.454,0.00014716,2]
[399245161,1766201441296,-32591.20521854,0.00014737,2]
[399245162,1766201441307,-42389.71247181,0.00014737,2]
[399245163,1766201441318,-640.24104381,0.00014737,2]
[399245164,1766201441327,-500.0,0.00014867,2]
[399245165,1766201441337,-500.0,0.00014867,2]
[399245166,1766201441346,-1500.0,0.00014868,2]
[399245167,1766201441356,-1500.0,0.00014868,2]
[399245168,1766201441366,-1001.91769362,0.00014868,2]
[399245169,1766201441376,-1501.51415398,0.00014868,2]
[399245170,1766201441385,-1500.0,0.00014868,2]
[399245171,1766201441395,-502.20443143,0.00014868,2]
[399245172,1766201441404,-1503.97714891,0.00014868,2]
[399245173,1766201441414,-1001.58945381,0.00014868,2]
[399245174,1766201441424,-1500.0,0.00014868,2]
[399245175,1766201441434,-1500.0,0.00014868,2]
[399245176,1766201441444,-1502.00400434,0.00014868,2]
[399245177,1766201441454,-1501.18432329,0.00014868,2]
[399245178,1766201441464,-365.94030489,0.00014868,2]
[399245179,1766201441475,-1500.0,0.00014868,2]
[399245180,1766201441484,-200.0,0.00014889,2]
[399245181,1766201441493,-500.0,0.00014889,2]
[399245182,1766201441504,-200.0,0.00014889,2]
[399245183,1766201441513,-2218.72,0.00014984,2]
[399245184,1766201441523,-1258.91027464,0.00015,2]
[399245185,1766201441532,-200.0,0.00015,2]
[399245186,1766201441541,-1154.66111645,0.00015,2]
[399245187,1766201441551,-21450.94429117,0.00015,2]
[399245188,1766201441560,-152.0,0.00015055,2]
[399245189,1766201441569,-152.0,0.00015055,2]
[399245190,1766201441582,-152.0,0.00015055,2]
[399245191,1766201441592,-152.0,0.00015055,2]
[399245192,1766201441601,-835.0,0.00015055,2]
[399245193,1766201441610,-1255.0,0.00015055,2]
[399245194,1766201441621,-152.0,0.00015055,2]
[399245195,1766201441630,-835.0,0.00015055,2]
[399245196,1766201441640,-1255.0,0.00015055,2]
[399245197,1766201441650,-152.0,0.00015055,2]
[399245198,1766201441659,-835.0,0.00015055,2]
[399245199,1766201441669,-1255.0,0.00015055,2]
[399245200,1766201441678,-1255.0,0.00015055,2]
[399245201,1766201441687,-152.0,0.00015055,2]
[399245202,1766201441697,-1255.0,0.00015055,2]
[399245203,1766201441706,-152.0,0.00015055,2]
[399245204,1766201441715,-1255.0,0.00015055,2]
[399245205,1766201441724,-152.0,0.00015055,2]
[399245206,1766201441733,-1255.0,0.00015055,2]
[399245207,1766201441742,-1255.0,0.00015055,2]
[399245208,1766201441751,-1255.0,0.00015055,2]
[399245209,1766201441761,-1255.0,0.00015055,2]
[399245210,1766201441770,-1255.0,0.00015055,2]
[399245211,1766201441779,-1255.0,0.00015055,2]
[399245212,1766201441789,-1255.0,0.00015055,2]
[399245213,1766201441799,-1255.0,0.00015055,2]
[399245214,1766201441808,-1255.0,0.00015055,2]
[399245215,1766201441818,-1255.0,0.00015055,2]
[399245216,1766201441827,-1255.0,0.00015055,2]
[399245217,1766201441838,-1255.0,0.00015055,2]
[399245218,1766201441847,-1255.0,0.00015055,2]
[399245219,1766201441857,-1255.0,0.00015055,2]
[399245220,1766201441867,-200.0,0.0001515,2]
[399245221,1766201441878,-200.0,0.0001516,2]
[399245222,1766201441888,-200.0,0.0001516,2]
[399245223,1766201441898,-150.0,0.00015205,2]
[399245224,1766201441909,-2218.72,0.00015258,2]
[399245225,1766201441919,-200.0,0.00015301,2]
[399245226,1766201441929,-510.18,0.00015309,2]
[399245227,1766201441938,-200.0,0.00015312,2]
[399245228,1766201441947,-200.0,0.00015312,2]
[399245229,1766201441960,-296.4,0.00015315,2]
[399245230,1766201441974,-500.0,0.00015397,2]
[399245231,1766201441983,-505.81490245,0.000154,2]
[399245232,1766201441993,-2000.0,0.00015416,2]
[399245233,1766201442002,-1188.04388907,0.00015416,2]
[399245234,1766201442012,-1501.47727649,0.00015416,2]
[399245235,1766201442022,-2002.17420355,0.00015416,2]
[399245236,1766201442031,-2000.0,0.00015416,2]
[399245237,1766201442042,-1503.12423045,0.00015416,2]
[399245238,1766201442052,-200.0,0.00015437,2]
[399245239,1766201442062,-500.0,0.00015437,2]
[399245240,1766201442073,-200.0,0.00015437,2]
[399245241,1766201442082,-200.0,0.00015455,2]
[399245242,1766201442092,-32591.20521854,0.00015458,2]
[399245243,1766201442102,-42389.71247181,0.00015458,2]
[399245244,1766201442111,-200.0,0.00015465,2]
[399245245,1766201442120,-200.0,0.00015465,2]
[399245246,1766201442130,-1600.0,0.00015525,2]
[399245247,1766201442139,-2218.72,0.00015532,2]
[399245248,1766201442148,-369.35,0.00015549,2]
[399245249,1766201442158,-200.0,0.00015609,2]
[399245250,1766201442167,-200.0,0.00015619,2]
[399245251,1766201442175,-200.0,0.00015619,2]
[399245252,1766201442186,-200.0,0.00015776,2]
[399245253,1766201442197,-200.0,0.00015776,2]
[399245254,1766201442206,-2218.72,0.00015806,2]
[399245255,1766201442215,-2228.79457528,0.00015807,2]
[399245256,1766201442224,-640.24104381,0.00015819,2]
[399245257,1766201442234,-218.82,0.00015862,2]
[399245258,1766201442247,-457.0,0.00015863,2]
[399245259,1766201442256,-1000.0,0.00015889,2]
[399245260,1766201442266,-150.97899754,0.00015891,2]
[399245261,1766201442276,-500.0,0.00015891,2]
[399245262,1766201442285,-500.0,0.00015891,2]
[399245263,1766201442295,-500.0,0.00015891,2]
[399245264,1766201442304,-833.0,0.00015891,2]
[399245265,1766201442313,-833.0,0.00015891,2]
[399245266,1766201442323,-150.0,0.00015891,2]
[399245267,1766201442332,-833.0,0.00015891,2]
[399245268,1766201442341,-1693.0,0.00015891,2]
[399245269,1766201442350,-833.0,0.00015891,2]
[399245270,1766201442359,-833.0,0.00015891,2]
[399245271,1766201442368,-833.0,0.00015891,2]
[399245272,1766201442377,-833.0,0.00015891,2]
[399245273,1766201442386,-500.0,0.00015891,2]
[399245274,1766201442395,-150.0,0.00015891,2]
[399245275,1766201442404,-833.0,0.00015891,2]
[399245276,1766201442413,-833.0,0.00015891,2]
[399245277,1766201442422,-833.0,0.00015891,2]
[399245278,1766201442432,-833.0,0.00015891,2]
[399245279,1766201442441,-150.0,0.00015891,2]
[399245280,1766201442450,-833.0,0.00015891,2]
[399245281,1766201442459,-500.0,0.00015891,2]
[399245282,1766201442468,-833.0,0.00015891,2]
[399245283,1766201442477,-833.0,0.00015891,2]
[399245284,1766201442486,-150.0,0.00015891,2]
[399245285,1766201442496,-150.0,0.00015891,2]
[399245286,1766201442505,-833.0,0.00015891,2]
[399245287,1766201442514,-833.0,0.00015891,2]
[399245288,1766201442523,-833.0,0.00015891,2]
[399245289,1766201442534,-150.0,0.00015891,2]
[399245290,1766201442544,-150.0,0.00015891,2]
[399245291,1766201442555,-833.0,0.00015891,2]
[399245292,1766201442564,-833.0,0.00015891,2]
[399245293,1766201442575,-833.0,0.00015891,2]
[399245294,1766201442586,-833.0,0.00015891,2]
[399245295,1766201442596,-833.0,0.00015891,2]
[399245296,1766201442607,-833.0,0.00015891,2]
[399245298,1766201442791,-845.03550195,0.00015891,2]
[399245299,1766201442800,-500.0,0.00015891,2]
[399245300,1766201442810,-434.0,0.00015891,2]
[399245301,1766201442819,-150.0,0.00015891,2]
[399245304,1766201442828,-500.0,0.00015891,2]
[399245306,1766201442838,-150.0,0.00015891,2]
[399245307,1766201442848,-500.0,0.00015891,2]
[399245308,1766201442857,-471.0,0.00015891,2]
[399245309,1766201442867,-720.0,0.00015891,2]
[399245310,1766201442877,-500.0,0.00015891,2]
[399245311,1766201442887,-554.0,0.00015891,2]
[399245312,1766201442896,-1222.0,0.00015891,2]
[399245314,1766201442906,-150.0,0.00015891,2]
[399245316,1766201442916,-151.90726099,0.00015891,2]
[399245317,1766201442926,-150.0,0.00015891,2]
[399245318,1766201442935,-724.0,0.00015891,2]
[399245319,1766201442945,-500.0,0.00015891,2]
[399245320,1766201442954,-150.0,0.00015891,2]
[399245321,1766201442963,-500.0,0.00015891,2]
[399245322,1766201442973,-500.0,0.00015891,2]
[399245323,1766201442982,-497.0,0.00015891,2]
[399245324,1766201442991,-150.0,0.00015891,2]
[399245325,1766201443000,-500.0,0.00015891,2]
[399245326,1766201443009,-500.0,0.00015891,2]
[399245327,1766201443019,-150.0,0.00015891,2]
[399245328,1766201443028,-500.0,0.00015891,2]
[399245329,1766201443036,-151.04245761,0.00015891,2]
[399245330,1766201443046,-581.0,0.00015891,2]
[399245331,1766201443055,-152.49962646,0.00015891,2]
[399245332,1766201443064,-150.0,0.00015891,2]
[399245333,1766201443073,-500.0,0.00015891,2]
[399245334,1766201443082,-150.0,0.00015891,2]
[399245335,1766201443091,-500.0,0.00015891,2]
[399245336,1766201443100,-500.0,0.00015891,2]
[399245337,1766201443110,-150.0,0.00015891,2]
[399245338,1766201443119,-338.28459543,0.00015928,2]
[399245339,1766201443128,-510.0020883,0.00015928,2]
[399245340,1766201443137,-734.94435391,0.00015928,2]
[399245341,1766201443147,-272.20622186,0.00015928,2]
[399245342,1766201443156,-2500.0,0.00015964,2]
[399245343,1766201443166,-2500.0,0.00015964,2]
[399245344,1766201443176,-215.0738,0.00015983,2]
[399245345,1766201443187,-200.0,0.00015985,2]
[399245346,1766201443196,-500.0,0.00015985,2]
[399245347,1766201443206,-200.0,0.00015985,2]
[399245348,1766201443215,-2032.51847287,0.0001599,2]
[399245349,1766201443224,-300.0,0.00015991,2]
[399245350,1766201443235,-1199.0,0.00015991,2]
[399245351,1766201443245,-500.0,0.00015991,2]
[399245352,1766201443255,-250.0,0.00015991,2]
[399245353,1766201443264,-151.0,0.00015991,2]
[399245354,1766201443274,-500.0,0.00015991,2]
[399245355,1766201443283,-500.0,0.00015991,2]
[399245356,1766201443292,-250.0,0.00015991,2]
[399245357,1766201443301,-9552.16786547,0.00015991,2]
[399245358,1766201443310,-500.0,0.00015991,2]
[399245359,1766201443320,-500.0,0.00015991,2]
[399245360,1766201443329,-250.0,0.00015991,2]
[399245361,1766201443339,-500.0,0.00015991,2]
[399245363,1766201443348,-500.0,0.00015991,2]
[399245364,1766201443357,-250.0,0.00015991,2]
[399245365,1766201443366,-500.0,0.00015991,2]
[399245366,1766201443375,-500.0,0.00015991,2]
[399245367,1766201443385,-250.0,0.00015991,2]
[399245368,1766201443394,-500.0,0.00015991,2]
[399245369,1766201443403,-500.0,0.00015991,2]
[399245370,1766201443412,-250.0,0.00015991,2]
[399245371,1766201443422,-500.0,0.00015991,2]
[399245372,1766201443431,-500.0,0.00015991,2]
[399245373,1766201443443,-250.0,0.00015991,2]
[399245374,1766201443452,-500.0,0.00015991,2]
[399245375,1766201443461,-500.0,0.00015991,2]
[399245376,1766201443470,-250.0,0.00015991,2]
[399245377,1766201443479,-500.0,0.00015991,2]
[399245378,1766201443489,-174.94180424,0.00015991,2]
[399245379,1766201443498,-250.0,0.00015991,2]
[399245380,1766201443507,-500.0,0.00015991,2]
[399245381,1766201443516,-500.0,0.00015991,2]
[399245382,1766201443526,-250.0,0.00015991,2]
[399245383,1766201443535,-500.0,0.00015991,2]
[399245384,1766201443544,-250.0,0.00015991,2]
[399245385,1766201443553,-500.0,0.00015991,2]
[399245386,1766201443563,-574.12855637,0.00015991,2]
[399245387,1766201443571,-500.0,0.00015991,2]
[399245388,1766201443586,-151.0,0.00015991,2]
[399245389,1766201443595,-500.0,0.00015991,2]
[399245390,1766201443605,-151.49542101,0.00015991,2]
[399245391,1766201443614,-500.0,0.00015991,2]
[399245392,1766201443625,-500.0,0.00015991,2]
[399245393,1766201443634,-500.0,0.00015991,2]
[399245394,1766201443647,-500.0,0.00015991,2]
[399245395,1766201443657,-500.0,0.00015991,2]
[399245396,1766201443667,-500.0,0.00015991,2]
[399245397,1766201443677,-500.0,0.00015991,2]
[399245398,1766201443686,-578.20924308,0.00015991,2]
[399245399,1766201443696,-500.0,0.00015991,2]
[399245400,1766201443705,-500.0,0.00015991,2]
[399245401,1766201443714,-500.0,0.00015991,2]
[399245402,1766201443723,-500.0,0.00015991,2]
[399245403,1766201443732,-500.0,0.00015991,2]
[399245404,1766201443741,-500.0,0.00015991,2]
[399245405,1766201443750,-592.95411986,0.00015991,2]
[399245406,1766201443759,-500.0,0.00015991,2]
[399245407,1766201443768,-500.0,0.00015991,2]
[399245408,1766201443778,-500.0,0.00015991,2]
[399245409,1766201443787,-500.0,0.00015991,2]
[399245410,1766201443796,-500.0,0.00015991,2]
[399245411,1766201443806,-500.0,0.00015991,2]
[399245412,1766201443815,-500.0,0.00015991,2]
[399245413,1766201443824,-250.0,0.00015991,2]
[399245414,1766201443834,-500.0,0.00015991,2]
[399245415,1766201443845,-500.0,0.00015991,2]
[399245416,1766201443855,-250.0,0.00015991,2]
[399245417,1766201443864,-500.0,0.00015991,2]
[399245418,1766201443874,-500.0,0.00015991,2]
[399245419,1766201443883,-220.0,0.00015991,2]
[399245420,1766201443893,-620.0,0.00015991,2]
[399245421,1766201443902,-173.95994129,0.00015991,2]
[399245422,1766201443912,-200.0,0.00015991,2]
[399245423,1766201443921,-500.0,0.00015991,2]
[399245424,1766201443931,-500.0,0.00015991,2]
[399245425,1766201443940,-207.4,0.00015991,2]
[399245426,1766201443950,-220.0,0.00015991,2]
[399245427,1766201443960,-500.0,0.00015991,2]
[399245428,1766201443969,-500.0,0.00015991,2]
[399245429,1766201443979,-215.0738,0.00015991,2]
[399245430,1766201443988,-500.0,0.00015991,2]
[399245431,1766201443997,-220.0,0.00015991,2]
[399245432,1766201444007,-223.0315306,0.00015991,2]
[399245433,1766201444017,-500.0,0.00015991,2]
[399245434,1766201444026,-220.0,0.00015991,2]
[399245435,1766201444036,-500.0,0.00015991,2]
[399245436,1766201444046,-231.28369723,0.00015991,2]
[399245437,1766201444055,-220.0,0.00015991,2]
[399245438,1766201444065,-500.0,0.00015991,2]
[399245439,1766201444075,-239.84119403,0.00015991,2]
[399245440,1766201444084,-500.0,0.00015991,2]
[399245441,1766201444093,-220.0,0.00015991,2]
[399245442,1766201444102,-248.71531821,0.00015991,2]
[399245443,1766201444111,-252.4499311,0.00015991,2]
[399245444,1766201444119,-257.91778498,0.00015991,2]
[399245445,1766201444128,-267.46074303,0.00015991,2]
[399245446,1766201444137,-277.35679052,0.00015991,2]
[399245447,1766201444147,-153.78508436,0.00015991,2]
[399245448,1766201444156,-500.0,0.00015991,2]
[399245449,1766201444165,-500.0,0.00015991,2]
[399245450,1766201444175,-500.0,0.00015991,2]
[399245451,1766201444184,-500.0,0.00015991,2]
[399245452,1766201444193,-1037.0,0.00015991,2]
[399245453,1766201444202,-500.0,0.00015991,2]
[399245454,1766201444211,-500.0,0.00015991,2]
[399245455,1766201444220,-500.0,0.00015991,2]
[399245456,1766201444238,-500.0,0.00015991,2]
[399245457,1766201444249,-500.0,0.00015991,2]
[399245458,1766201444259,-500.0,0.00015991,2]
[399245459,1766201444268,-500.0,0.00015991,2]
[399245460,1766201444278,-151.0,0.00015997,2]
[399245461,1766201444288,-251037.70267655,0.00016,2]
[399245462,1766201444297,-1381879.43207477,0.00016,4]
[399245463,1766201444307,-500.0,0.00016028,2]
[399245464,1766201444317,-500.0,0.00016028,2]
[399245465,1766201444327,-500.0,0.00016028,2]
[399245466,1766201444337,-150.0,0.00016028,2]
[399245467,1766201444347,-1693.0,0.00016028,2]
[399245468,1766201444356,-500.0,0.00016028,2]
[399245469,1766201444367,-150.0,0.00016028,2]
[399245470,1766201444376,-500.0,0.00016028,2]
[399245471,1766201444386,-150.0,0.00016028,2]
[399245472,1766201444395,-150.0,0.00016028,2]
[399245473,1766201444404,-150.0,0.00016028,2]
[399245474,1766201444414,-162.71079327,0.00016028,2]
[399245475,1766201444423,-150.0,0.00016028,2]
[399245476,1766201444433,-500.0,0.00016028,2]
[399245477,1766201444442,-434.0,0.00016028,2]
[399245478,1766201444451,-150.0,0.00016028,2]
[399245479,1766201444461,-500.0,0.00016028,2]
[399245480,1766201444470,-151.71461843,0.00016028,2]
[399245481,1766201444480,-500.0,0.00016028,2]
[399245482,1766201444490,-471.0,0.00016028,2]
[399245483,1766201444499,-720.0,0.00016028,2]
[399245484,1766201444509,-500.0,0.00016028,2]
[399245485,1766201444518,-554.0,0.00016028,2]
[399245486,1766201444529,-1222.0,0.00016028,2]
[399245487,1766201444538,-724.0,0.00016028,2]
[399245488,1766201444547,-500.0,0.00016028,2]
[399245489,1766201444557,-500.0,0.00016028,2]
[399245490,1766201444567,-500.0,0.00016028,2]
[399245491,1766201444580,-497.0,0.00016028,2]
[399245492,1766201444590,-150.0,0.00016028,2]
[399245493,1766201444599,-500.0,0.00016028,2]
[399245494,1766201444608,-500.0,0.00016028,2]
[399245495,1766201444619,-201.2765323,0.00016028,2]
[399245496,1766201444629,-500.0,0.00016028,2]
[399245497,1766201444638,-581.0,0.00016028,2]
[399245498,1766201444647,-150.29349305,0.00016028,2]
[399245499,1766201444659,-150.0,0.00016028,2]
[399245500,1766201444668,-500.0,0.00016028,2]
[399245501,1766201444678,-500.0,0.00016028,2]
[399245502,1766201444688,-500.0,0.00016028,2]
[399245503,1766201444697,-150.0,0.00016028,2]
[399245504,1766201444706,-200.0,0.00016029,2]
[399245505,1766201444715,-9905.5980765,0.00016046,2]
[399245506,1766201444724,-2218.72,0.0001608,2]
[399245507,1766201444733,-510.18,0.00016092,2]
[399245508,1766201444743,-1000.0,0.000161,2]
[399245509,1766201444752,-851.5140941,0.00016101,2]
[399245510,1766201444761,-10972.56,0.00016116,2]
[399245511,1766201444771,-500.0,0.00016165,2]
[399245512,1766201444784,-501.70181775,0.00016165,2]
[399245513,1766201444793,-500.0,0.00016165,2]
[399245514,1766201444803,-150.0,0.00016165,2]
[399245515,1766201444812,-1693.0,0.00016165,2]
[399245516,1766201444822,-500.0,0.00016165,2]
[399245517,1766201444831,-231.95831861,0.00016165,2]
[399245518,1766201444841,-500.0,0.00016165,2]
[399245519,1766201444852,-150.0,0.00016165,2]
[399245520,1766201444861,-150.0,0.00016165,2]
[399245521,1766201444871,-214.56501288,0.00016165,2]
[399245522,1766201444881,-150.0,0.00016165,2]
[399245523,1766201444891,-500.0,0.00016165,2]
[399245524,1766201444900,-434.0,0.00016165,2]
[399245525,1766201444910,-150.0,0.00016165,2]
[399245526,1766201444920,-500.0,0.00016165,2]
[399245527,1766201444929,-500.0,0.00016165,2]
[399245528,1766201444939,-471.0,0.00016165,2]
[399245529,1766201444948,-720.0,0.00016165,2]
[399245530,1766201444958,-500.0,0.00016165,2]
[399245531,1766201444967,-554.0,0.00016165,2]
[399245532,1766201444977,-1222.0,0.00016165,2]
[399245533,1766201444987,-724.0,0.00016165,2]
[399245534,1766201444996,-500.0,0.00016165,2]
[399245535,1766201445006,-500.0,0.00016165,2]
[399245536,1766201445015,-500.0,0.00016165,2]
[399245537,1766201445025,-497.0,0.00016165,2]
[399245538,1766201445034,-256.61900573,0.00016165,2]
[399245539,1766201445044,-356.44146346,0.00016165,2]
[399245540,1766201445054,-467.42824898,0.00016165,2]
[399245541,1766201445066,-500.0,0.00016165,2]